Cogmind - Beta 14 --- EXPLORER MODE // 2024.09.07 @ 21:37:09 Player: DigDiggieDig Result: Destroyed by H-66 Slayer with Heavy Assault Rifle Performance ------------- Evolutions (4) 2000 Regions Visited (6) 1200 Robots Destroyed (150) 750 Value Destroyed (5415) 5415 Prototype IDs (7) 140 Alien Tech Used (0) 0 Bonus (-810) -810 TOTAL SCORE: 8695 Bonus ------- Follower Combat Kills 184 Friendly Fire -994 Cogmind --------- Core Integrity 0/850 Matter 151/300 Energy 54/450 System Corruption 0% Temperature Cool (0) Movement Rolling (125) Ox3 Location -6/Extension Parts ------- > --- POWER (2) -------- (None) > --- PROPULSION (3) --- Wheel > --- UTILITY (9) ------ Large Storage Unit Energy Well Visual Processing Unit Improved Signal Interpreter Advanced Targeting Computer > --- WEAPON (2) ------- Magnetic Acceleration Cannon > --- INVENTORY (15) --- Micro Antimatter Reactor Power Amplifier Improved Heat Sink High-capacity Matter Pod (0) Weight Redist. System Advanced ECM Suite Phase Shifter Hacking Suite Gatling Laser Improved Proton Missile Launcher Peak State ------------ > --- POWER ------------ Improved Deuterium Engine Light Fission Core > --- PROPULSION ------- Wheel Wheel Compact Wheel > --- UTILITY ---------- Large Storage Unit Visual Processing Unit Improved Signal Interpreter Targeting Computer Advanced Targeting Computer Improved Utility Shielding Improved Heavy Armor Plating System Restoration Module > --- WEAPON ----------- Coil Gun Coil Gun > --- INVENTORY -------- Improved Deuterium Engine Light Angular Momentum Engine Power Amplifier Advanced Heat Sink Energy Well High-capacity Matter Pod Weight Redist. System Advanced ECM Suite Phase Shifter Hardened Light Armor Plating Hacking Suite Cooled Plasma Cannon Magnetic Acceleration Cannon Improved Proton Missile Launcher Improved Grenade Launcher [Rating: 55] Favorites ----------- Power Improved Deuterium Engine Engine Improved Deuterium Engine Power Core Light Fission Core Propulsion Advanced Treads Treads Advanced Treads Wheel Wheel Utility Large Storage Unit Device Cooling System Storage Large Storage Unit Processor Advanced Targeting Computer Protection Utility Shielding Weapon Assault Cannon Energy Gun Small Laser Energy Cannon Cooled Plasma Cannon Ballistic Gun Coil Gun Ballistic Cannon Assault Cannon Launcher Improved Grenade Launcher Special Weapon Mining Laser Build | -11 -10 -9 -8 -7 -6 -6 ------- Run | Yrd Mat Mat Mat Fac Fac Ext Slots Evolved 9 | . 1 2 2 2 2 . Power 1 | . . . 1 . . . Propulsion 1 | . . . . . 1 . Utility 7 | . 1 2 1 2 1 . Weapon . | . . . . . . . Parts Attached 139 | 7 3 24 8 17 45 35 Power 15 | 2 . 2 2 1 5 3 Engine 11 | 2 . 2 2 1 2 2 Core 4 | . . . . . 3 1 Reactor . | . . . . . . . Propulsion 26 | 2 . 3 . 6 11 4 Treads 14 | 2 . 3 . 6 3 . Leg . | . . . . . . . Wheel 12 | . . . . . 8 4 Hover . | . . . . . . . Flight . | . . . . . . . Utility 43 | 2 1 5 5 7 16 7 Device 15 | . . 2 2 1 7 3 Storage 5 | . 1 1 . . . 3 Processor 8 | 2 . 1 1 2 2 . Hackware . | . . . . . . . Protection 15 | . . 1 2 4 7 1 Artifact . | . . . . . . . Weapon 55 | 1 2 14 1 3 13 21 Energy Gun 11 | 1 1 5 . 1 2 1 Energy Cannon 5 | . . . . . 2 3 Ballistic Gun 11 | . 1 1 . . 2 7 Ballistic Cannon 14 | . . 6 1 2 3 2 Launcher 13 | . . 1 . . 4 8 Special Weapon 1 | . . 1 . . . . Impact Weapon . | . . . . . . . Slashing Weapon . | . . . . . . . Piercing Weapon . | . . . . . . . Special Melee Weapon . | . . . . . . . Unidentified Prototypes 2 | . . 1 . . 1 . Parts Lost 34 | . . . 2 . 15 17 Power 4 | . . . . . 2 2 Propulsion 11 | . . . . . 6 5 Utility 12 | . . . 1 . 5 6 Weapon 7 | . . . 1 . 2 4 Highest Loss Streak 13 | . . . 1 . 5 13 To Critical Strikes . | . . . . . . . Average Slot Usage (%) 94 | . 100 99 98 97 91 86 Engine 9 | . 12 10 15 12 5 5 Core 2 | . . . . . 5 5 Treads 11 | . 25 19 16 13 5 . Wheel 4 | . . . . . 6 13 Device 8 | . . 9 12 10 9 3 Storage 7 | . 12 10 8 7 6 6 Processor 21 | . 25 20 16 17 21 24 Protection 12 | . . 10 10 21 15 14 Energy Gun 6 | . 23 4 8 8 2 1 Ballistic Gun 2 | . 1 2 . . 3 6 Ballistic Cannon 4 | . . 12 8 5 3 . Peak Build Rating 55 | 6 9 21 29 39 53 55 Average Rating 33 | 5 8 18 25 34 43 50 On Entrance 21 | . 6 9 21 29 37 50 Naked Turns . | . . . . . . . Heaviest Build 71 | 4 15 37 50 64 68 71 Greatest Support 67 | 40 40 44 50 44 67 42 Greatest Overweight (x) 18 | 1 . 5 1 18 6 12 Average Overweight (x) 1 | . . . . 1 1 2 Largest Inventory Capacity 15 | 5 10 15 15 15 15 15 Average Capacity 13 | 5 10 10 15 15 15 15 Most Carried 15 | 5 10 15 15 15 15 15 Average Carried 13 | 3 9 10 14 14 14 14 Final Capacity 15 | 5 10 15 15 15 15 15 Final Carried 15 | 5 10 14 15 15 15 10 Class Distribution -------------------- 63% | Hacker-Mutant 21% | Scavenger-Mutant 10% | Hacker-Skirmisher 4% | Scavenger-Skirmisher Dominant Class ---------------- Hacker-Mutant | -10/Materials Hacker-Mutant | -9/Materials Hacker-Mutant | -8/Materials Hacker-Mutant | -7/Factory Hacker-Skirmisher | -6/Factory Scavenger-Mutant | -6/Extension Resources | -11 -10 -9 -8 -7 -6 -6 ----------- Run | Yrd Mat Mat Mat Fac Fac Ext Matter Collected 3737 | 267 127 735 418 376 1130 684 Remotely . | . . . . . . . Salvage Created 5251 | 47 92 791 947 348 1604 1422 Parts 272 | 1 16 49 50 15 81 60 Haulers Intercepted . | . . . . . . . Recyclers Shooed 5 | . . . . . 2 3 Parts Field Recycled . | . . . . . . . Retrieved Matter . | . . . . . . . Parts Self-Destructed . | . . . . . . . Prevented . | . . . . . . . Kills | -11 -10 -9 -8 -7 -6 -6 ------- Run | Yrd Mat Mat Mat Fac Fac Ext Combat Hostiles Destroyed 102 | . 4 23 20 9 29 17 Guns 32 | . 4 3 7 2 5 11 Cannons 57 | . . 15 13 7 17 5 AOE 13 | . . 5 . . 7 1 Classes Destroyed 13 | 1 2 4 4 1 . 1 Worker 10 | . . 1 . . 6 3 Builder 10 | . . . 1 . 5 4 Recycler 7 | 1 . 1 . . 3 2 Operator 1 | . . . 1 . . . Watcher 17 | . 2 4 4 2 5 . Swarmer 16 | . 4 6 . . 6 . Grunt 39 | . . 11 9 4 9 6 Brawler 1 | . . 1 . . . . Duelist 2 | . . . 1 . 1 . Sentry 20 | . . 5 7 1 2 5 Hunter 17 | . . . 3 2 8 4 Programmer 5 | . . . . 2 3 . Behemoth 2 | . . . . . . 2 Thug 2 | . . . . . 1 1 Savage 1 | . . . . . . 1 Best Kill Streak 8 | 1 2 8 5 2 5 7 Combat Bots Only 7 | . 2 7 5 2 5 2 Max Kills in Single Turn 4 | 1 2 2 2 1 4 3 Gunslinging 1 | . 1 . . . . . Exploded 3 | . . 2 . . 3 1 Melee . | . . . . . . . Uniques/NPCs Destroyed . | . . . . . . . Combat | -11 -10 -9 -8 -7 -6 -6 -------- Run | Yrd Mat Mat Mat Fac Fac Ext Hostile Shots Fired 1130 | . 30 77 92 84 325 522 Missed 354 | . 9 28 31 34 89 163 Damage Taken 6062 | . 97 337 550 316 2018 2744 Core 1080 | . 16 88 89 34 222 631 Absorbed by Shields 192 | . . . . . 112 80 Redirected to Shielding 201 | . . 2 10 2 64 123 Ignored by Resistances 4488 | . 73 224 335 267 1796 1793 Regen/Repaired (Parts) 123 | . . 9 . 114 . . Core Remaining (%) 89 | 100 93 78 83 95 . . Volleys Fired 399 | . 17 47 60 41 121 113 Largest 2 | . 2 2 2 2 2 2 Hottest 148 | . 80 100 100 121 135 148 Shots Fired 647 | . 34 84 119 67 183 160 Gun 328 | . 34 23 59 36 68 108 Cannon 276 | . . 51 60 31 104 30 Launcher 37 | . . 4 . . 11 22 Special 6 | . . 6 . . . . Kinetic 401 | . 2 59 60 31 123 126 Thermal 208 | . 32 20 59 36 49 12 Explosive 26 | . . 4 . . 9 13 Electromagnetic 12 | . . 1 . . 2 9 Robot Hit Streak 45 | . 9 17 26 45 28 40 Robot Miss Streak 3 | . 3 2 1 1 2 2 Penetration Max 1 | . . . . . 1 1 Secondary Targets 1 | . 1 . . . . . Max Gunslinging Chain 1 | . 1 . . . . . Shots Hit Robots 502 | . 21 51 104 59 147 120 Core Hits 266 | 1 7 34 51 21 85 67 Critical Kills 1 | . . . . . . 1 Critical Parts Destroyed 3 | . . . . . 1 2 Critical Strikes 36 | . . 1 9 5 14 7 Burn 9 | . . . 8 . 1 . Destroy 5 | . . . . . 1 4 Blast 22 | . . 1 1 5 12 3 Melee Attacks . | . . . . . . . Impact . | . . . . . . . Slashing . | . . . . . . . Piercing . | . . . . . . . Sneak Attacks . | . . . . . . . Combat Hostiles . | . . . . . . . Follow-up Attacks . | . . . . . . . Damage Inflicted 15415 | 3 223 1464 2025 1168 6068 4464 Guns 4964 | . 223 173 810 467 1146 2145 Cannons 6303 | . . 791 1210 701 2579 1022 Explosions 3996 | . . 356 . . 2343 1297 Melee . | . . . . . . . Ramming 8 | 3 . . 5 . . . Kinetic 8043 | . 7 857 1210 701 2630 2638 Thermal 4338 | . 216 251 810 467 2029 565 Explosive 2387 | . . 356 . . 1095 936 Electromagnetic 639 | . . . . . 314 325 Impact . | . . . . . . . Slashing . | . . . . . . . Piercing . | . . . . . . . Highest Corruption 2 | . 1 . 1 2 . . Average Corruption 1 | . 1 . 1 1 . . Corruption Purged . | . . . . . . . Corruption Blocked . | . . . . . . . Effects 9 | . 1 . 1 7 . . Message Errors 2 | . . . . 2 . . Matter Fused 3 | . 1 . . 2 . . Parts Rejected 1 | . . . . 1 . . Data Loss (minor) 2 | . . . 1 1 . . Data Loss (major) 1 | . . . . 1 . . Overload Shots 12 | . . . . . 5 7 Effects 1 | . . . . . 1 . Energy Bleed 1 | . . . . . 1 . Overflow Damage 474 | . . 2 35 33 347 57 Projectiles 183 | . . 2 35 33 106 7 Explosions 291 | . . . . . 241 50 Melee . | . . . . . . . Knockbacks 32 | . . 6 4 4 17 1 Impact . | . . . . . . . Kinetic 31 | . . 6 4 4 16 1 Secondary 1 | . . . . . 1 . Self-Inflicted Damage 153 | . . . . . 153 . Shots 6 | . . . . . 6 . Rammed 2 | 1 . . 1 . . . Targets Rammed 3 | 2 . . 1 . . . Kicked . | . . . . . . . Crushed 1 | 1 . . . . . . Highest Temperature 532 | . 90 135 427 60 532 320 Average Temperature 92 | . 32 38 127 15 169 65 Received Heat Transfer 1613 | . . 186 342 99 383 603 Effects 16 | . . . 4 . 12 . Shutdowns 7 | . . . 2 . 5 . Energy Bleed 5 | . . . . . 5 . Interference 3 | . . . 2 . 1 . Short Circuit 1 | . . . . . 1 . Siege Activations . | . . . . . . . Robots Corrupted . | . . . . . . . Combat Hostiles . | . . . . . . . Parts Fried 3 | . . . . . . 3 Impact Corruptions . | . . . . . . . Robots Melted . | . . . . . . . Combat Hostiles . | . . . . . . . Parts Melted 16 | . . . 3 3 8 2 Heat Transferred 8103 | . 500 549 2664 1036 2639 715 Parts Sabotaged . | . . . . . . . Parts Stolen . | . . . . . . . Parts Stripped . | . . . . . . . Power Chain Reactions 3 | . . . . . 1 2 Alert | -11 -10 -9 -8 -7 -6 -6 ------- Run | Yrd Mat Mat Mat Fac Fac Ext Peak Influence 347 | 5 94 347 299 299 291 226 Initial 88 | . 2 28 9 38 . 88 Average 94 | 2 40 124 122 107 94 79 Maximum Alert Level 1 | . . 1 1 1 1 1 Low Security (%) 86 | 100 100 75 78 85 88 90 Level 1 13 | . . 24 21 14 11 9 Level 2 . | . . . . . . . Level 3 . | . . . . . . . Level 4 . | . . . . . . . Level 5 . | . . . . . . . High Security . | . . . . . . . Max Security . | . . . . . . . Squads Dispatched 22 | . . 5 3 3 7 4 Investigation 10 | . . 2 2 2 3 1 Extermination 4 | . . . . 1 3 . Reinforcement 8 | . . 3 1 . 1 3 Assault . | . . . . . . . Garrison . | . . . . . . . Intercept . | . . . . . . . Searches Triggered . | . . . . . . . Construction Impeded 3 | . . . . . 1 2 Haulers Reinforced . | . . . . . . . Active Scanning Responses . | . . . . . . . Cargo Convoy Interrupts . | . . . . . . . Stealth | -11 -10 -9 -8 -7 -6 -6 --------- Run | Yrd Mat Mat Mat Fac Fac Ext Distress Signals 12 | . 1 3 4 1 3 . Communications Jammed . | . . . . . . . Distress Signals . | . . . . . . . Times Spotted 146 | . 7 30 28 11 44 26 Peak Tracking Total 7 | . 3 5 5 3 5 7 Tactical Retreats 8 | . . 1 3 1 1 2 Traps | -11 -10 -9 -8 -7 -6 -6 ------- Run | Yrd Mat Mat Mat Fac Fac Ext Traps Triggered 15 | . . 4 2 2 1 6 Indirectly . | . . . . . . . Trap Hack Attempts . | . . . . . . . Triggered . | . . . . . . . Disarmed . | . . . . . . . Reprogrammed 3 | . . 3 . . . . Reused . | . . . . . . . Traps Extracted . | . . . . . . . Installed . | . . . . . . . Triggered . | . . . . . . . Machines | -11 -10 -9 -8 -7 -6 -6 ---------- Run | Yrd Mat Mat Mat Fac Fac Ext Machines Disabled 23 | . . . . . 20 3 Max in Single Turn 7 | . . . . . 7 1 Garrison Access 2 | . . . 1 1 . . Machines Repaired . | . . . . . . . Machines Dismantled . | . . . . . . . Machines Sabotaged . | . . . . . . . Overloaded Fab Kills . | . . . . . . . Hacking | -11 -10 -9 -8 -7 -6 -6 --------- Run | Yrd Mat Mat Mat Fac Fac Ext Machines Accessed 38 | . 5 6 8 3 10 6 Terminals 23 | . 5 4 5 . 3 6 Fabricators 2 | . . . . . 2 . Repair Stations 5 | . . 1 1 2 1 . Recycling Units 3 | . . 1 . . 2 . Scanalyzers 3 | . . . 1 . 2 . Garrison Access 2 | . . . 1 1 . . Total Hacks 104 | . 15 16 20 7 29 17 Successful 75 | . 13 14 11 4 21 12 Failed 29 | . 2 2 9 3 8 5 Catastrophic 1 | . . . 1 . . . Database Lockouts . | . . . . . . . Manual 6 | . . 1 2 . 3 . Terminals 63 | . 15 13 13 . 5 17 Fabricators 4 | . . . . . 4 . Repair Stations 14 | . . 2 4 6 2 . Recycling Units 7 | . . 1 . . 6 . Scanalyzers 14 | . . . 2 . 12 . Garrison Access 2 | . . . 1 1 . . Terminal Hacks 49 | . 13 11 9 . 4 12 Record 23 | . 9 3 4 . 1 6 Prototype ID Bank 2 | . . 1 1 . . . Open Door 4 | . . . . . . 4 Open DSF 1 | . . . . . 1 . Emergency Access Points 4 | . 1 . 1 . 2 . Alert Level 2 | . . 1 1 . . . Unreport Threat 1 | . . 1 . . . . Locate Traps 1 | . . 1 . . . . Reprogram Traps 1 | . . 1 . . . . Dispatch Records 1 | . . . . . . 1 Registered Components 1 | . . . 1 . . . Zone Layout 8 | . 3 3 1 . . 1 Fabricator Hacks 4 | . . . . . 4 . Network Status 1 | . . . . . 1 . Load Schematic 1 | . . . . . 1 . Build 2 | . . . . . 2 . Repair Station Hacks 6 | . . 2 1 3 . . Scan Component 4 | . . 1 1 2 . . Repair 2 | . . 1 . 1 . . Recycling Unit Hacks 2 | . . 1 . . 1 . Report Inventory 2 | . . 1 . . 1 . Scanalyzer 12 | . . . . . 12 . Insert Component 5 | . . . . . 5 . Analyze 7 | . . . . . 7 . Garrison Access Hacks 2 | . . . 1 1 . . Seal Access 2 | . . . 1 1 . . Unauthorized Hacks . | . . . . . . . Terminals . | . . . . . . . Fabricators . | . . . . . . . Repair Stations . | . . . . . . . Recycling Units . | . . . . . . . Scanalyzers . | . . . . . . . Garrison Access . | . . . . . . . Data Cores Recovered 1 | . . . 1 . . . Used . | . . . . . . . Hacking Detections 28 | . 5 5 6 2 8 2 Full Trace Events 11 | . 1 2 2 2 3 1 Feedback Events 2 | . 1 . . 1 . . Corruption 2 | . 1 . . 1 . . Feedback Blocked . | . . . . . . . Robot Schematics Acquired . | . . . . . . . Robots Built . | . . . . . . . Authchips . | . . . . . . . Time . | . . . . . . . Total Robot Build Rating . | . . . . . . . Part Schematics Acquired 4 | . . . . . 4 . Parts Built 1 | . . . . . 1 . Authchips . | . . . . . . . Time 153 | . . . . . 153 . Total Part Build Rating 5 | . . . . . 5 . Parts Repaired 2 | . . 1 . 1 . . Time 45 | . . 26 . 19 . . Parts Recycled . | . . . . . . . Recycled Matter . | . . . . . . . Retrieved Matter . | . . . . . . . Retrieved Components . | . . . . . . . Parts Scanalyzed 5 | . . . . . 5 . Part Schematics Acquired 4 | . . . . . 4 . Parts Damaged . | . . . . . . . Bothacking | -11 -10 -9 -8 -7 -6 -6 ------------ Run | Yrd Mat Mat Mat Fac Fac Ext Used RIF Installer . | . . . . . . . Robots Hacked . | . . . . . . . Non-combat . | . . . . . . . Combat . | . . . . . . . Robot Hacks Applied . | . . . . . . . Relay Couplers Released 4 | . . . . 4 . . Programmers 4 | . . . . 4 . . Fabnet Peak Effective % . | . . . . . . . Robots Rewired . | . . . . . . . Allies Hacked . | . . . . . . . Hacks Repelled . | . . . . . . . Allies | -11 -10 -9 -8 -7 -6 -6 -------- Run | Yrd Mat Mat Mat Fac Fac Ext Total Allies 9 | . . . . . 3 6 Largest Group 3 | . . . . . 3 2 Highest-Rated Group 159 | . . . . . 93 159 Highest-Rated Ally 159 | . . . . . 31 159 Total Orders . | . . . . . . . Ally Attacks 77 | . . . . . 36 41 Total Damage 1401 | . . . . . 502 899 Kills 6 | . . . . . 5 1 Allies Corrupted . | . . . . . . . Allies Melted 1 | . . . . . . 1 Intel | -11 -10 -9 -8 -7 -6 -6 ------- Run | Yrd Mat Mat Mat Fac Fac Ext Robot Analysis Total . | . . . . . . . Derelict Logs Recovered . | . . . . . . . Drone Launches 2 | . . . . . 2 . Drone Recoveries . | . . . . . . . Exploration | -11 -10 -9 -8 -7 -6 -6 ------------- Run | Yrd Mat Mat Mat Fac Fac Ext Turns Passed 7772 | 227 738 1195 1051 911 2338 1312 Spaces Moved 3766 | 145 419 600 469 327 1175 631 Core 42 | 35 . 1 . 1 . 5 Treads 2367 | 110 419 599 469 326 444 . Legs . | . . . . . . . Wheels 1357 | . . . . . 731 626 Hover . | . . . . . . . Flight . | . . . . . . . Fastest Speed 50 | 50 160 145 145 225 95 101 Average Speed 156 | 138 160 147 167 228 156 118 Slowest Speed 950 | 160 160 300 225 950 385 650 Overloaded Moves . | . . . . . . . Propulsion Burnouts . | . . . . . . . Robots Hopped . | . . . . . . . Cave-ins Triggered . | . . . . . . . Exploration Rate (%) 36 | 9 63 44 49 10 26 53 Regions Visited 6 Branch Regions 1 Pre-discovered Areas . | . . . . . . . Known Exits Taken 6 | 1 1 1 1 1 1 . Unknown Exits Taken . | . . . . . . . Scrap Searched . | . . . . . . . Spaces Dug 52 | . . . . . 1 51 Terrain Destroyed 258 | . . 38 3 7 115 95 Melee . | . . . . . . . Projectile 35 | . . 8 3 7 11 6 AOE 223 | . . 30 . . 104 89 Terrain Rammed . | . . . . . . . Walls Destroyed . | . . . . . . . Machines Disabled . | . . . . . . . Actions | -11 -10 -9 -8 -7 -6 -6 --------- Run | Yrd Mat Mat Mat Fac Fac Ext Total 5018 | 171 455 822 622 427 1492 1029 Wait 429 | 7 2 98 52 19 77 174 Move 3759 | 143 418 599 468 326 1174 631 Hop . | . . . . . . . Pick Up 150 | 11 11 33 19 16 46 14 Fast Attach . | . . . . . . . Attach 85 | 7 3 12 8 10 29 16 Detach 7 | 1 . . . . 2 4 Swap 54 | . . 12 . 7 16 19 Drop 84 | . 4 21 14 8 27 10 Fire 399 | . 17 47 60 41 121 113 Melee . | . . . . . . . Ram . | . . . . . . . Kick . | . . . . . . . Crush 3 | 2 . . 1 . . . Escape Stasis 48 | . . . . . . 48 Rewire . | . . . . . . . Trap . | . . . . . . . Miscellaneous . | . . . . . . . Route ------- -11/Scrapyard -10/Materials (discovered 3 exits: *Mat x2 / *Min) -9/Materials (discovered 3 exits: *Mat / *Min x2) -8/Materials (discovered 2 exits: *Fac / *Sto) -7/Factory -6/Factory -6/Extension History --------- Turn | Location | Event 17 | -11/Scrapyard | Identified exit to Materials 17 | -11/Scrapyard | Discovered exit to Materials (range 16) 228 | -11/Scrapyard | Entered Materials 228 | -10/Materials | Evolved 1 slot: Utility x1 307 | -10/Materials | Build established: Hacker-Mutant 547 | -10/Materials | Identified exit to Mines 547 | -10/Materials | Discovered exit to Mines (range 9) 631 | -10/Materials | Identified exit to Materials 631 | -10/Materials | Discovered exit to Materials (range 16) 907 | -10/Materials | Discovered exit to Materials (range 16) 966 | -10/Materials | Entered another Materials area 966 | -9/Materials | Evolved 2 slots: Utility x2 1160 | -9/Materials | Identified exit to Mines 1160 | -9/Materials | Discovered exit to Mines (range 15) 1745 | -9/Materials | Destroyed 7 combat bots 2000 | -9/Materials | Discovered exit to Mines (range 6) 2092 | -9/Materials | Identified exit to Materials 2092 | -9/Materials | Discovered exit to Materials (range 4) 2139 | -9/Materials | Repaired Sensor Array 2161 | -9/Materials | Entered another Materials area 2161 | -8/Materials | Evolved 2 slots: Power x1, Utility x1 2739 | -8/Materials | Identified exit to Storage 2739 | -8/Materials | Discovered exit to Storage (range 15) 3012 | -8/Materials | Identified exit to Factory 3012 | -8/Materials | Discovered exit to Factory (range 15) 3212 | -8/Materials | Entered Factory 3212 | -7/Factory | Evolved 2 slots: Utility x2 3251 | -7/Factory | Repaired Adv. Treads 3916 | -7/Factory | Identified exit to Factory 3916 | -7/Factory | Discovered exit to Factory (range 17) 4123 | -7/Factory | Entered another Factory area 4123 | -6/Factory | Evolved 2 slots: Propulsion x1, Utility x1 4491 | -6/Factory | Build established: Hacker-Skirmisher 4926 | -6/Factory | Build established: Hacker-Mutant 5043 | -6/Factory | Lost 5 parts (1p2u2w) 5374 | -6/Factory | Allied Derelicts emerged from ambush trap array 5384 | -6/Factory | Lost 3 parts (1p2n) 5517 | -6/Factory | Build established: Hacker-Skirmisher 5908 | -6/Factory | Build established: Scavenger-Skirmisher 5978 | -6/Factory | Lost 3 parts (1n2u) 6205 | -6/Factory | Identified exit to Extension 6205 | -6/Factory | Discovered exit to Extension (range 16) 6221 | -6/Factory | Build established: Scavenger-Mutant 6317 | -6/Factory | Fabricated Imp. Proton Missile Launcher (x1) 6461 | -6/Factory | Entered Extension 6494 | -6/Extension | Rescued a captive Derelict 6495 | -6/Extension | Rescued a captive Derelict 6586 | -6/Extension | Rescued a captive Derelict 6790 | -6/Extension | Rescued a captive Derelict 6791 | -6/Extension | Rescued a captive Derelict 6958 | -6/Extension | Spotted B-75 Beast 7266 | -6/Extension | Rescued A7 7605 | -6/Extension | Extracted ID and sensor layout for unrecognized location from A7's data core 7620 | -6/Extension | Destroyed B-75 Beast 7628 | -6/Extension | Spotted B-75 Beast 7636 | -6/Extension | Disrupted transfer network 7687 | -6/Extension | Core integrity fell below 50% 7692 | -6/Extension | Destroyed B-75 Beast 7751 | -6/Extension | Core integrity fell below 20% 7773 | -6/Extension | Destroyed by H-66 Slayer with Heavy Assault Rifle Last Messages --------------- Slug penetrates G-50 Soldier. Penetrated by Slug. Slug penetrates G-50 Soldier. Cld. Plasma Cannon destroyed. Penetrated by Slug. Coil Gun destroyed. Penetrated by Slug. Slug penetrates A-15 Conveyor. Acquired Wheel. Penetrated by Slug. Slug penetrates G-50 Soldier. G-50 Soldier destroyed. Slug penetrates U-05 Engineer. Penetrated by Slug. H-66 Slayer suffers critical hit (Blast). Destroyed Targeting Computer. H-66 Slayer misfires. H-66 Slayer suffers critical hit (Blast). H-66 Slayer destroyed. Penetrated by Slug. Map ----- +----------------------------------------------------+ | ?########????## #########???# *# #?????????????? | | ??????????????# #######?????# # #?????????????? | | ??????????????####???????????# # #?????????????? | | ?????????????????????????????## ## #?????????????? | | ??????????????????????????????# ## #?????????????? | | ??????????????????????????#####+##=#?????????????? | | ??????????????????????????# % [+%#?????????????? | | ??????????????????????????# / ! #*#?????????????? | | ??????????????????????????# ! #%#?????????????? | | ??????????????????????????#! # #?????????????? | | ??????????????????????????# / # #?????????????? | | ??????????????????????????# # #?????????????? | | ??????????????????????????######## #?????????????? | | ?????????????????????????????????# #?????????????? | | ?????????????????????????????????# #?????????????? | | ?????????????????????????????????# #??##??#??????? | | ?????????????????????????????????# ###%## #??????? | | ?????????????????????????????????" ""%% "?????? | | ?????????????????????????????????" "! ?????? | | ????????????????????????????????? = % ????? | | ?????????????#????#????######### [[ ????? | | ##############;;###;########;# #%= ????? | | = % % %!] [ % ???? | | %%%! =!= !%h% ???? | | !! =%! *%=%% ??? | | @*!!%=[=%%% ??? | | ku RR Rk=%!%% !!%|A %u % ??? | | ###########################|%== = % ??? | | ??????????????????????????#[ # % ??? | | ??????????????????????????# # ???? | | ???????????????????????????#### ???? | | ??????????????????????????????## ????? | | ?????????????????????????????????#### #"""###????? | | ??????????????????????????????????????#??????????? | | ?????????????????????????????????????????????????? | | | | | | | | | | | | | | | | | | | | | | | | | | | | | | | +----------------------------------------------------+ Best States ------------- Heat Dissipation 59 Energy Generation 29 Energy Capacity 500 Matter Stores 300 Matter Capacity 500 Sight Range 18 Robot Scan Range 15 Terrain Scan Density 10 ECM Strength 2 Additional Mass Support 6 Armor Coverage 600 Resistance: KI 55 Resistance: TH 35 Resistance: EX 35 Resistance: EM 35 Resistance: I 35 Resistance: S 35 Resistance: P 35 Utility Shielding 66 Weapon Shielding 33 Evasion (%) 50 Targeting Accuracy 16 Recoil Reduction 3 Offensive Hacking 20 Item Schematics ----------------- Weight Redist. System | -6/Factory | Scanalyzed Imp. Proton Missile Launcher | -6/Factory | Scanalyzed Cld. Plasma Cannon | -6/Factory | Scanalyzed Hacking Suite | -6/Factory | Scanalyzed Robot Schematics ------------------ None Fabricated ------------ Imp. Proton Missile Launcher | x1 | -6/Factory Alien Tech Used ----------------- None Achievements -------------- Hey, That's Mine! I Spy Novice Programmer Overkill Prison Break Challenges ------------ None Game ------ Seed AngularBarrageAutobeam Manual? 0 Play Time 01:47:10 Cumulative 9.4 hours Start 2024.08.23 @ 20:14:20 End 2024.09.07 @ 21:37:09 Sessions 5 Manual Loads 0 Difficulty Explorer Special Mode None Game No. 5 Rogue 0 Adventurer 0 Explorer 5 Win Type - Total 0 Types 0/0/0/0/0/0/0/0/0 Lore% 2 Gallery% 13 Achievement% 15 Wizard Run 0 Options --------- Layout 1 ASCII 0 Keyboard 0 Movement Mouse Keybinds 0 Fullscreen 1 Font 24/Smallcaps Map View 50x35 Zoom Use 0% Tactical HUD 0 Map Filters NONE Filters NONE Steam 1 RUN: 7f51049b-4f52-4769-8e2a-0c1fa2c1c0ae